lending/lending_fUSD_20250429
["ID","MTS","AMOUNT","RATE_DAILY","PERIOD"]
[359303142,1745901277105,470.0,0.00038356,30]
[359303143,1745901277878,583.3,0.00038356,30]
[359303144,1745901278598,470.0,0.00038356,30]
[359303145,1745901278746,508.93,0.00038356,30]
[359303146,1745901279952,400.46528256,0.00038356,30]
[359303147,1745901280641,470.0,0.00038356,30]
[359303148,1745901280702,470.0,0.00038356,30]
[359303149,1745901281497,584.82699918,0.00038356,30]
[359303150,1745901282528,400.45995552,0.00038356,30]
[359303151,1745901282603,500.0,0.00035616,60]
[359303152,1745901282655,510.732113,0.00038356,30]
[359303153,1745901283350,621.9,0.00038356,30]
[359303154,1745901283436,470.0,0.00038356,30]
[359303155,1745901284301,500.0,0.00036712,60]
[359303156,1745901284429,470.0,0.00038356,30]
[359303157,1745901285462,470.0,0.00038356,30]
[359303158,1745901285831,382.57446002,0.00037808,60]
[359303159,1745901285896,501.08,0.00038356,30]
[359303160,1745901286267,470.0,0.00038356,30]
[359303161,1745901286730,470.0,0.00038356,30]
[359303162,1745901287076,470.0,0.00038356,30]
[359303163,1745901287840,470.0,0.00038356,30]
[359303164,1745901288084,470.0,0.00038356,30]
[359303165,1745901289184,470.0,0.00038356,30]
[359303166,1745901289356,470.0,0.00038356,30]
[359303167,1745901290237,470.0,0.00038356,30]
[359303168,1745901291648,704.01,0.00038356,30]
[359303169,1745901291734,470.0,0.00038356,30]
[359303170,1745901294570,470.0,0.00038356,30]
[359303171,1745901295434,470.0,0.00038356,30]
[359303172,1745901296353,470.0,0.00038356,30]
[359303173,1745901296764,1257.89,0.00038356,30]
[359303174,1745901299886,190.30703476,0.00038356,30]
[359303175,1745901300405,1536.83,0.00038356,30]
[359303176,1745901300467,470.0,0.00038356,30]
[359303177,1745901301827,470.0,0.00038356,30]
[359303178,1745901301991,470.0,0.00038356,30]
[359303179,1745901302145,470.0,0.00038356,30]
[359303181,1745901303615,799.14,0.00038356,30]
[359303182,1745901304760,475.74,0.00038356,30]
[359303183,1745901306396,923.27,0.00038356,30]
[359303184,1745901306960,470.0,0.00038356,30]
[359303185,1745901308373,4053.13,0.00038356,30]
[359303186,1745901308494,470.0,0.00038356,30]
[359303187,1745901308542,470.0,0.00038356,30]
[359303188,1745901308873,470.0,0.00038356,30]
[359303189,1745901309113,470.0,0.00038356,30]
[359303190,1745901311333,1232.22,0.00038356,30]
[359303191,1745901311515,501.91,0.00038356,30]
[359303192,1745901312811,470.0,0.00038356,30]
[359303193,1745901313169,470.0,0.00038356,30]
[359303194,1745901314147,482.45429963,0.00038356,30]
[359303195,1745901314237,470.0,0.00038356,30]
[359303196,1745901314565,470.0,0.00038356,30]
[359303197,1745901316734,470.0,0.00038356,30]
[359303198,1745901317475,470.0,0.00038356,30]
[359303199,1745901318678,470.0,0.00038356,30]
[359303200,1745901318794,470.0,0.00038356,30]
[359303201,1745901319775,638.05,0.00038356,30]
[359303202,1745901319895,470.0,0.00038356,30]
[359303203,1745901320167,706.03,0.00038356,30]
[359303204,1745901320325,470.0,0.00038356,30]
[359303205,1745901321036,462.5866286,0.00038356,30]
[359303206,1745901322762,470.0,0.00038356,30]
[359303207,1745901323399,470.0,0.00038356,30]
[359303208,1745901323915,2031.7,0.00038356,30]
[359303209,1745901323975,470.0,0.00038356,30]
[359303210,1745901324797,992.82,0.00038356,30]
[359303211,1745901327948,592.25,0.00038356,30]
[359303212,1745901327999,507.26,0.00038356,30]
[359303213,1745901328470,470.0,0.00038356,30]
[359303214,1745901330118,470.0,0.00038356,30]
[359303215,1745901330778,470.0,0.00038356,30]
[359303216,1745901331935,470.0,0.00038356,30]
[359303217,1745901332060,1246.62,0.00038356,30]
[359303218,1745901332219,470.0,0.00038356,30]
[359303219,1745901333077,516.85,0.00038356,30]
[359303220,1745901333653,488.55,0.00038356,30]
[359303221,1745901335460,192.65300606,0.00038356,30]
[359303222,1745901335562,470.0,0.00038356,30]
[359303223,1745901336338,470.0,0.00038356,30]
[359303224,1745901337400,470.0,0.00038356,30]
[359303225,1745901337451,470.0,0.00038356,30]
[359303226,1745901339128,629.98,0.00038356,30]
[359303227,1745901339655,470.0,0.00038356,30]
[359303228,1745901339935,1055.14,0.00038356,30]
[359303229,1745901341282,470.0,0.00038356,30]
[359303230,1745901342235,4000.0,0.00038356,30]
[359303231,1745901342539,470.0,0.00038356,30]
[359303232,1745901342999,470.0,0.00038356,30]
[359303233,1745901345949,470.0,0.00038356,30]
[359303234,1745901346577,509.90594317,0.00038356,30]
[359303235,1745901346696,377.04721362,0.00038356,30]
[359303236,1745901347617,470.0,0.00038356,30]
[359303237,1745901348418,470.0,0.00038356,30]
[359303238,1745901348738,470.0,0.00038356,30]
[359303239,1745901349171,470.0,0.00038356,30]
[359303240,1745901351145,470.0,0.00038356,30]
[359303241,1745901351374,506.06,0.00038356,30]
[359303242,1745901353156,188.47373225,0.00038356,30]
[359303243,1745901353461,470.0,0.00038356,30]
[359303244,1745901354168,470.0,0.00038356,30]
[359303245,1745901354406,1293.17,0.00038356,30]
[359303246,1745901354785,579.59,0.00038356,30]
[359303247,1745901356540,470.0,0.00038356,30]
[359303248,1745901356946,641.26,0.00038356,30]
[359303249,1745901357333,507.9,0.00038356,30]
[359303250,1745901357472,470.0,0.00038356,30]
[359303251,1745901358619,470.0,0.00038356,30]
[359303252,1745901359543,470.0,0.00038356,30]
[359303253,1745901360384,470.0,0.00038356,30]
[359303254,1745901362074,1853.06,0.00038356,30]
[359303255,1745901362465,470.0,0.00038356,30]
[359303256,1745901362882,1203.62,0.00038356,30]
[359303257,1745901365887,500.0,0.00038356,30]
[359303258,1745901365941,470.0,0.00038356,30]
[359303259,1745901365997,605.51,0.00038356,30]
[359303260,1745901366054,500.0,0.00038356,30]
[359303261,1745901366546,500.0,0.00038356,30]
[359303262,1745901366798,500.0,0.00038356,30]
[359303263,1745901367080,500.0,0.00038356,30]
[359303264,1745901367327,500.0,0.00038356,30]
[359303265,1745901367577,500.0,0.00038356,30]
[359303266,1745901367854,500.0,0.00038356,30]
[359303267,1745901368091,500.0,0.00038356,30]
[359303268,1745901368143,187.0021645,0.00038356,30]
[359303269,1745901368343,500.0,0.00038356,30]
[359303270,1745901368931,470.0,0.00038356,30]
[359303271,1745901369014,344.68991261,0.00038356,30]
[359303272,1745901369172,470.0,0.00038356,30]
[359303273,1745901372539,470.0,0.00038356,30]
[359303274,1745901373704,470.0,0.00038356,30]
[359303275,1745901374417,2891.49,0.00038356,30]
[359303276,1745901375766,1476.39,0.00038356,30]
[359303277,1745901376250,470.0,0.00038356,30]
[359303278,1745901376913,411.5805543,0.00038356,30]
[359303279,1745901377147,502.90272209,0.00038356,30]
[359303280,1745901378792,470.0,0.00038356,30]
[359303281,1745901378843,470.0,0.00038356,30]
[359303282,1745901380384,688.6,0.00038356,30]
[359303283,1745901380455,470.0,0.00038356,30]
[359303284,1745901380749,470.0,0.00038356,30]
[359303285,1745901381032,470.0,0.00038356,30]
[359303286,1745901381514,604.96299255,0.00038356,30]
[359303287,1745901382986,771.58,0.00038356,30]
[359303288,1745901383607,470.0,0.00038356,30]
[359303289,1745901386884,470.0,0.00038356,30]
[359303290,1745901387039,470.0,0.00038356,30]
[359303291,1745901388606,470.0,0.00038356,30]
[359303292,1745901388662,1000.0,0.00038356,30]
[359303293,1745901388722,470.0,0.00038356,30]
[359303294,1745901389720,470.0,0.00038356,30]
[359303295,1745901390758,494.5,0.00038356,30]
[359303296,1745901391630,470.0,0.00038356,30]
[359303297,1745901391818,470.0,0.00038356,30]
[359303298,1745901392403,1242.93,0.00038356,30]
[359303299,1745901392578,1004.51,0.00038356,30]
[359303300,1745901395327,640.98,0.00038356,30]
[359303301,1745901395546,470.0,0.00038356,30]
[359303302,1745901395836,470.0,0.00038356,30]
[359303303,1745901396207,470.0,0.00038356,30]
[359303304,1745901397562,470.0,0.00038356,30]
[359303305,1745901398890,470.0,0.00038356,30]
[359303306,1745901398971,470.0,0.00038356,30]
[359303307,1745901400306,507.51427689,0.00038356,30]
[359303308,1745901400686,1246.14,0.00038356,30]
[359303309,1745901400753,470.0,0.00038356,30]
[359303310,1745901402202,470.0,0.00038356,30]
[359303311,1745901402620,470.0,0.00038356,30]
[359303312,1745901403236,470.0,0.00038356,30]
[359303313,1745901404403,540.28795138,0.00038356,30]
[359303314,1745901405196,1217.52,0.00038356,30]
[359303315,1745901407739,489.16,0.00038356,30]
[359303316,1745901408050,470.0,0.00038356,30]
[359303317,1745901408394,470.0,0.00038356,30]
[359303318,1745901408581,542.75,0.00038356,30]
[359303319,1745901408865,694.39,0.00038356,30]
[359303320,1745901409797,1000.0,0.00038356,30]
[359303321,1745901410253,470.0,0.00038356,30]
[359303322,1745901412022,509.66701739,0.00038356,30]
[359303323,1745901412109,470.0,0.00038356,30]
[359303324,1745901415261,470.0,0.00038356,30]
[359303325,1745901416902,470.0,0.00038356,30]
[359303326,1745901417116,406.15558954,0.00038356,30]
[359303327,1745901419667,470.0,0.00038356,30]
[359303328,1745901420416,528.84070716,0.00038356,30]
[359303329,1745901422059,470.0,0.00038356,30]
[359303330,1745901422228,470.0,0.00038356,30]
[359303331,1745901422712,470.0,0.00038356,30]
[359303332,1745901422887,470.0,0.00038356,30]
[359303333,1745901423193,470.0,0.00038356,30]
[359303334,1745901423684,476.39136021,0.00038356,30]
[359303335,1745901423940,813.65,0.00038356,30]
[359303336,1745901426868,470.0,0.00038356,30]
[359303337,1745901429438,470.0,0.00038356,30]
[359303338,1745901432231,470.0,0.00038356,30]
[359303339,1745901432544,470.0,0.00038356,30]
[359303340,1745901435066,885.14,0.00038356,30]
[359303341,1745901437421,641.85,0.00038356,30]
[359303342,1745901438246,470.0,0.00038356,30]
[359303343,1745901439951,527.22,0.00038356,30]
[359303344,1745901440018,1000.0,0.00038356,30]
[359303345,1745901440831,470.0,0.00038356,30]
[359303346,1745901441155,470.0,0.00038356,30]
[359303347,1745901441860,470.0,0.00038356,30]
[359303348,1745901442191,470.0,0.00038356,30]
[359303349,1745901442682,470.0,0.00038356,30]
[359303350,1745901443567,27439.42,0.00038356,30]
[359303351,1745901446587,470.0,0.00038356,30]
[359303352,1745901447822,470.0,0.00038356,30]
[359303353,1745901448878,470.0,0.00038356,30]
[359303354,1745901451181,794.89,0.00038356,30]
[359303355,1745901452249,470.0,0.00038356,30]
[359303356,1745901452410,470.0,0.00038356,30]
[359303357,1745901452469,544.51058844,0.00038356,30]
[359303358,1745901454642,470.0,0.00038356,30]
[359303359,1745901454861,470.0,0.00038356,30]
[359303360,1745901455121,543.23,0.00038356,30]
[359303361,1745901455703,470.0,0.00038356,30]
[359303362,1745901458380,470.0,0.00038356,30]
[359303363,1745901459190,1062.8,0.00038356,30]
[359303364,1745901461107,470.0,0.00038356,30]
[359303365,1745901462078,2128.45,0.00038356,30]
[359303366,1745901462129,782.82,0.00038356,30]
[359303367,1745901464130,470.0,0.00038356,30]
[359303368,1745901464408,1461.87,0.00038356,30]
[359303369,1745901464957,470.0,0.00038356,30]
[359303370,1745901467515,470.0,0.00038356,30]
[359303371,1745901468052,586.88,0.00038356,30]
[359303372,1745901468596,470.0,0.00038356,30]
[359303373,1745901468966,470.0,0.00038356,30]
[359303374,1745901470291,1746.4,0.00038356,30]
[359303375,1745901470996,501.18985111,0.00038356,30]
[359303376,1745901471391,470.0,0.00038356,30]
[359303377,1745901473092,207.0,0.000381,30]
[359303378,1745901473401,207.0,0.0003742,30]
[359303379,1745901473842,470.0,0.00038356,30]
[359303380,1745901474919,470.0,0.00038356,30]
[359303381,1745901475046,465.07811761,0.00038356,30]
[359303382,1745901475651,470.0,0.00038356,30]
[359303383,1745901476431,719.22,0.00038356,30]
[359303384,1745901477895,673.56,0.00038356,30]
[359303385,1745901478332,470.0,0.00038356,30]
[359303386,1745901478524,1374.21,0.00038356,30]
[359303387,1745901479032,509.16,0.00038356,30]
[359303388,1745901481205,1136.31,0.00031111,120]
[359303389,1745901481429,1136.31,0.00035,120]
[359303390,1745901482207,470.0,0.00038356,30]
[359303391,1745901482463,470.0,0.00038356,30]
[359303392,1745901483063,470.0,0.00038356,30]
[359303393,1745901484441,470.0,0.00038356,30]
[359303394,1745901485141,304.75025153,0.00038356,30]
[359303395,1745901485189,470.0,0.00038356,30]
[359303396,1745901485731,470.0,0.00038356,30]
[359303397,1745901488682,470.0,0.00038356,30]
[359303398,1745901488979,470.0,0.00038356,30]
[359303399,1745901490295,5395.04,0.00038356,30]
[359303400,1745901491597,266.21113618,0.00038356,30]
[359303401,1745901491772,470.0,0.00038356,30]
[359303402,1745901492769,470.0,0.00038356,30]
[359303403,1745901493510,532.26,0.00038356,30]
[359303404,1745901493829,470.0,0.00038356,30]
[359303405,1745901496262,470.0,0.00038356,30]
[359303406,1745901497112,662.88,0.00038356,30]
[359303407,1745901499001,643.01,0.00038356,30]
[359303408,1745901499378,470.0,0.00038356,30]
[359303409,1745901501129,470.0,0.00038356,30]
[359303410,1745901503430,470.0,0.00038356,30]
[359303411,1745901504897,470.0,0.00038356,30]
[359303412,1745901505447,470.0,0.00038356,30]
[359303413,1745901507260,500.0,0.000383,30]
[359303414,1745901507789,11051.91,0.00038356,30]
[359303415,1745901510364,2936.962,0.00037658,49]
[359303416,1745901510556,166.957,0.00037658,49]
[359303417,1745901511557,470.0,0.00038356,30]
[359303418,1745901512214,689.31,0.00038356,30]
[359303419,1745901513667,532.62,0.00038356,30]
[359303420,1745901513721,470.0,0.00038356,30]
[359303421,1745901515747,506.07,0.00038356,30]
[359303422,1745901521428,470.0,0.00038356,30]
[359303423,1745901521709,470.0,0.00038356,30]
[359303424,1745901522860,470.0,0.00038356,30]
[359303425,1745901525084,470.0,0.00038356,30]
[359303426,1745901526046,210.05378918,0.00038356,30]
[359303427,1745901527958,470.0,0.00038356,30]
[359303428,1745901528089,470.0,0.00038356,30]
[359303429,1745901528466,470.0,0.00038356,30]
[359303430,1745901530066,155.19375521,0.00038356,30]
[359303431,1745901530143,1000.0,0.00038356,30]
[359303432,1745901531781,721.88,0.00038356,30]
[359303433,1745901533270,470.0,0.00038356,30]
[359303434,1745901534071,470.0,0.00038356,30]
[359303435,1745901534289,470.0,0.00038356,30]
[359303436,1745901535217,470.0,0.00038356,30]
[359303437,1745901537617,470.0,0.00038356,30]
[359303438,1745901540445,470.0,0.00038356,30]
[359303439,1745901540938,470.0,0.00038356,30]
[359303440,1745901542649,470.0,0.00038356,30]
[359303441,1745901543655,470.0,0.00038356,30]
[359303442,1745901546218,470.0,0.00038356,30]
[359303443,1745901549756,575.84482715,0.00038356,30]
[359303444,1745901550313,470.0,0.00038356,30]
[359303445,1745901551114,470.0,0.00038356,30]
[359303446,1745901554322,470.0,0.00038356,30]
[359303447,1745901556107,470.0,0.00038356,30]
[359303448,1745901556392,470.0,0.00038356,30]
[359303449,1745901556774,470.0,0.00038356,30]
[359303450,1745901557027,559.33,0.00038356,30]
[359303451,1745901559093,470.0,0.00038356,30]
[359303452,1745901560432,607.82,0.00038356,30]
[359303453,1745901566317,470.0,0.00038356,30]
[359303454,1745901569167,665.67,0.00038356,30]
[359303455,1745901569639,470.0,0.00038356,30]
[359303456,1745901571070,571.43,0.00038356,30]
[359303457,1745901572981,470.0,0.00038356,30]
[359303458,1745901573549,470.0,0.00038356,30]
[359303459,1745901573813,549.88,0.00038356,30]
[359303460,1745901575987,470.0,0.00038356,30]
[359303461,1745901577650,8264.26,0.00038356,30]
[359303462,1745901578512,470.0,0.00038356,30]
[359303463,1745901579210,470.0,0.00038356,30]
[359303464,1745901579328,470.0,0.00038356,30]
[359303465,1745901581111,537.47,0.00038356,30]
[359303466,1745901586747,585.64,0.00038356,30]
[359303467,1745901588611,531.05,0.00038356,30]
[359303468,1745901589747,1000.0,0.00038356,30]
[359303469,1745901590837,470.0,0.00038356,30]
[359303470,1745901592745,470.0,0.00038356,30]
[359303471,1745901595393,470.0,0.00038356,30]
[359303472,1745901598260,470.0,0.00038356,30]
[359303473,1745901599827,166.03,0.00031409,30]
[359303474,1745901603858,634.67,0.00038356,30]
[359303475,1745901604503,470.0,0.00038356,30]
[359303476,1745901604826,470.0,0.00038356,30]
[359303477,1745901605036,470.0,0.00038356,30]
[359303478,1745901606285,586.34,0.00038356,30]
[359303479,1745901610219,470.0,0.00038356,30]
[359303480,1745901610380,1040.67,0.00038356,30]
[359303481,1745901612427,470.0,0.00038356,30]
[359303482,1745901614420,470.0,0.00038356,30]
[359303483,1745901614771,864.07,0.00038356,30]
[359303484,1745901615245,470.0,0.00038356,30]
[359303485,1745901617412,470.0,0.00038356,30]
[359303486,1745901618223,470.0,0.00038356,30]
[359303487,1745901619156,470.0,0.00038356,30]
[359303488,1745901619291,470.0,0.00038356,30]
[359303489,1745901619551,470.0,0.00038356,30]
[359303490,1745901620268,470.0,0.00038356,30]
[359303491,1745901620727,917.02,0.00038356,30]
[359303492,1745901620785,470.0,0.00038356,30]
[359303493,1745901621421,470.0,0.00038356,30]
[359303494,1745901622680,470.0,0.00038356,30]
[359303495,1745901624303,1278.07,0.00038356,30]
[359303496,1745901624936,205.85427131,0.00038356,30]
[359303497,1745901625579,1443.04,0.00038356,30]
[359303498,1745901625870,489.29,0.00038356,30]
[359303499,1745901627213,1265.35,0.00038356,30]
[359303500,1745901628366,470.0,0.00038356,30]
[359303501,1745901628806,470.0,0.00038356,30]
[359303502,1745901629489,470.0,0.00038356,30]
[359303503,1745901630212,566.54,0.00038356,30]
[359303504,1745901630313,577.0,0.00038356,30]
[359303505,1745901631001,779.8,0.00038356,30]
[359303506,1745901633772,470.0,0.00038356,30]
[359303507,1745901635342,470.0,0.00038356,30]
[359303508,1745901635455,470.0,0.00038356,30]
[359303509,1745901635511,470.0,0.00038356,30]
[359303510,1745901635595,470.0,0.00038356,30]
[359303511,1745901636966,470.0,0.00038356,30]
[359303512,1745901637023,470.0,0.00038356,30]
[359303513,1745901638666,470.0,0.00038356,30]
[359303514,1745901638721,644.74,0.00038356,30]
[359303515,1745901639663,470.0,0.00038356,30]
[359303516,1745901639840,470.0,0.00038356,30]
[359303517,1745901639906,749.33,0.00038356,30]
[359303518,1745901640375,355.34528977,0.00038356,30]
[359303519,1745901642107,1947.05,0.00038356,30]
[359303520,1745901642239,470.0,0.00038356,30]
[359303521,1745901642733,602.56,0.00038356,30]
[359303522,1745901643312,878.18,0.00038356,30]
[359303523,1745901643946,470.0,0.00038356,30]
[359303524,1745901644006,470.0,0.00038356,30]
[359303525,1745901644757,470.0,0.00038356,30]
[359303526,1745901647361,728.8,0.00038356,30]
[359303527,1745901647978,470.0,0.00038356,30]
[359303528,1745901648645,470.0,0.00038356,30]
[359303529,1745901651684,470.0,0.00038356,30]
[359303530,1745901651733,1245.16,0.00038356,30]
[359303531,1745901653223,470.0,0.00038356,30]
[359303532,1745901653799,733.56,0.00038356,30]
[359303533,1745901654264,470.0,0.00038356,30]
[359303534,1745901654586,470.0,0.00038356,30]
[359303535,1745901656239,2544.0,0.0003835,30]
[359303536,1745901656289,559.3,0.00038356,30]
[359303537,1745901656341,470.0,0.00038356,30]
[359303538,1745901657597,470.0,0.00038356,30]
[359303539,1745901657882,543.17,0.00038356,30]
[359303540,1745901658608,470.0,0.00038356,30]
[359303541,1745901659963,1043.99,0.00038356,30]
[359303542,1745901660060,1058.34,0.00038356,30]
[359303543,1745901660574,470.0,0.00038356,30]
[359303544,1745901660871,470.0,0.00038356,30]
[359303545,1745901661548,470.0,0.00038356,30]
[359303546,1745901662511,625.25,0.00038356,30]
[359303547,1745901662957,470.0,0.00038356,30]
[359303548,1745901664592,568.10128526,0.00036918,41]
[359303549,1745901665364,470.0,0.00038356,30]
[359303550,1745901665538,470.0,0.00038356,30]
[359303551,1745901666054,470.0,0.00038356,30]
[359303552,1745901668100,470.0,0.00038356,30]
[359303553,1745901668417,169.57461258,0.00038356,30]
[359303554,1745901669594,568.10128523,0.00038314,45]
[359303555,1745901670282,470.0,0.00038356,30]
[359303556,1745901670466,762.28,0.00038356,30]
[359303557,1745901670518,470.0,0.00038356,30]
[359303558,1745901670751,795.47,0.00038356,30]
[359303559,1745901670968,835.49,0.00038356,30]
[359303560,1745901671843,1518.6,0.00038356,30]
[359303561,1745901672069,1136.06,0.00038356,30]
[359303562,1745901672391,470.0,0.00038356,30]
[359303563,1745901674602,470.0,0.00038356,30]
[359303564,1745901675346,1293.76,0.00038356,30]
[359303565,1745901676025,955.54,0.00038356,30]
[359303566,1745901676628,470.0,0.00038356,30]
[359303567,1745901679602,470.0,0.00038356,30]
[359303568,1745901680221,470.0,0.00038356,30]
[359303569,1745901680474,513.74,0.00038356,30]
[359303570,1745901680962,470.0,0.00038356,30]
[359303571,1745901682956,634.02,0.00038356,30]
[359303572,1745901683106,470.0,0.00038356,30]
[359303573,1745901683259,1200.92,0.00038356,30]
[359303574,1745901684384,748.79,0.00038356,30]
[359303575,1745901684435,765.87,0.00038356,30]
[359303576,1745901686071,740.32,0.00038356,30]
[359303577,1745901687144,470.0,0.00038356,30]
[359303578,1745901687568,470.0,0.00038356,30]
[359303579,1745901687739,504.9,0.00038356,30]
[359303580,1745901688251,478.7,0.00038356,30]
[359303581,1745901689022,470.0,0.00038356,30]
[359303582,1745901690004,531.97,0.00038356,30]
[359303583,1745901691303,470.0,0.00038356,30]
[359303584,1745901693274,626.33,0.00038356,30]
[359303585,1745901693985,622.67,0.00038356,30]
[359303586,1745901694045,300.0,0.00038356,30]
[359303587,1745901694162,470.0,0.00038356,30]
[359303588,1745901694947,570.12,0.00038356,30]
[359303589,1745901695039,1273.75,0.00038356,30]
[359303590,1745901695994,1414.87,0.00038356,30]
[359303591,1745901696525,513.75,0.00038356,30]
[359303592,1745901697337,470.0,0.00038356,30]
[359303593,1745901698040,470.0,0.00038356,30]
[359303594,1745901699690,470.0,0.00038356,30]
[359303595,1745901701063,470.0,0.00038356,30]
[359303596,1745901701604,470.0,0.00038356,30]
[359303597,1745901701808,470.0,0.00038356,30]
[359303598,1745901703087,470.0,0.00038356,30]
[359303599,1745901703221,470.0,0.00038356,30]
[359303600,1745901703754,639.55,0.00038356,30]
[359303601,1745901704576,470.0,0.00038356,30]
[359303602,1745901704882,496.35,0.00038356,30]
[359303603,1745901707134,470.0,0.00038356,30]
[359303604,1745901707182,922.9,0.00038356,30]
[359303605,1745901708684,470.0,0.00038356,30]
[359303606,1745901709836,871.28,0.00038356,30]
[359303607,1745901711001,1026.68,0.00038356,30]
[359303608,1745901712032,483.71,0.00038356,30]
[359303609,1745901712555,1219.47,0.00038356,30]
[359303610,1745901712714,470.0,0.00038356,30]
[359303611,1745901712859,470.0,0.00038356,30]
[359303612,1745901713825,470.0,0.00038356,30]
[359303613,1745901714450,470.0,0.00038356,30]
[359303614,1745901716665,404.89180703,0.00038356,30]
[359303615,1745901717558,470.0,0.00038356,30]
[359303616,1745901718529,412.89273897,0.00038356,30]
[359303617,1745901718974,582.88,0.00038356,30]
[359303618,1745901719252,470.0,0.00038356,30]
[359303619,1745901719753,470.0,0.00038356,30]
[359303620,1745901720381,470.0,0.00038356,30]
[359303621,1745901721717,830.66,0.00038356,30]
[359303622,1745901721771,470.0,0.00038356,30]
[359303623,1745901722714,525.91,0.00038356,30]
[359303624,1745901723465,470.0,0.00038356,30]
[359303625,1745901723887,470.0,0.00038356,30]
[359303626,1745901725229,470.0,0.00038356,30]
[359303627,1745901726038,1000.0,0.00038356,30]
[359303628,1745901726419,470.0,0.00038356,30]
[359303629,1745901727507,470.0,0.00038356,30]
[359303630,1745901729028,1661.49,0.00038356,30]
[359303631,1745901729348,710.21,0.00038356,30]
[359303632,1745901729397,150.0,0.00038356,30]
[359303633,1745901729768,587.12,0.00038356,30]
[359303634,1745901730161,470.0,0.00038356,30]
[359303635,1745901730813,542.51,0.00038356,30]
[359303636,1745901731044,470.0,0.00038356,30]
[359303637,1745901732648,470.0,0.00038356,30]
[359303638,1745901733040,470.0,0.00038356,30]
[359303639,1745901733091,470.0,0.00038356,30]
[359303640,1745901733342,150.0,0.00038356,30]
[359303641,1745901733830,470.0,0.00038356,30]
[359303642,1745901734690,150.0,0.00038356,30]